{"text_format":"2","workbook":"xlsx","n_sheets":3,"sheets":["표지","개정이력","배치목록"],"not_rendered":{"charts":0,"images":4,"macros":0,"external_links":0,"defined_names":9,"comments":0,"pivot_tables":0},"unopened":[],"bounds":{"document_bytes":16777216,"sheet_cells":100000,"run_cost":"one","rows_first":2000,"rows_last":500,"rows_between":2000,"halvings":0,"cell_chars":16384,"cell_head_chars":4096},"cells_cut":0,"cells_raw":0,"read":"whole","date_system":"1900"}

{"sheet":"표지","index":0,"n_rows":5,"n_cols":12,"rows_kept":5,"cut":false,"hidden":false,"merged":[[2,11,2,12],[3,11,3,12],[4,11,4,12]]}
[]
[]
[{"$nulls":10},"Version","V0.1"]
[{"$nulls":10},"개정일자","2021-05-24"]
[{"$nulls":10},"작성자","김덕규"]

{"sheet":"개정이력","index":1,"n_rows":28,"n_cols":6,"rows_kept":28,"cut":false,"hidden":false,"merged":[[0,0,0,5]]}
["개정 이력"]
["버전","개정일자","[1]개정사유","[2]개정내역","작성자","승인자"]
["0.1","2021-05-24","제정","최초 제정","김덕규","박중재"]
{"$rows_empty":23}
["[1] 개정 사유: 제정 또는 개정 내용이 이전 문서에 대해 추가/수정/삭제인지 선택 기입"]
["[2] 개정 내역: 개정이 발생하는 페이지 번호와 변경 내용을 기술"]

{"sheet":"배치목록","index":2,"n_rows":79,"n_cols":23,"rows_kept":79,"cut":false,"hidden":false,"merged":[[0,0,1,0],[0,1,1,1],[0,9,1,9],[0,12,0,17],[0,18,1,18],[0,8,1,8],[0,7,1,7],[0,2,0,6],[0,10,1,10],[0,11,1,11]]}
["No","배치명","배치ID(크론탭ID)",{"$nulls":4},"Controller Request Mapping","업무\n구분","배치\n주기","발생\n빈도","수행시간\n(00:00)","크론 스케줄",{"$nulls":5},"비고"]
[null,null,"기존 명칭","대분류","중분류","소분류","FULL 배치ID",{"$nulls":5},"초","분","시","일","월","연"]
[1,"상품 혜택 생성","cron.goods.benefit","goods","benefit","create",{"$f":"\"cron.\"&D3&\".\"&E3&\".\"&F3","v":"cron.goods.benefit.create"},{"$f":"\"/\"&D3&\"/\"&SUBSTITUTE(E3,\".\",\"/\")&\"/\"&F3","v":"/goods/benefit/create"},"상품","시간","1회/시","278초","30","3","*","*","*","*","5분이내실행",null,"cron.goods.benefit.create","상품 혜택 생성","/goods/benefit/create"]
[2,"상품 즉시할인가 생성","cron.goods.benefit.price","goods","benefit.price","create",{"$f":"\"cron.\"&D4&\".\"&E4&\".\"&F4","v":"cron.goods.benefit.price.create"},"/goods/benefit/price/create","상품","시간","1회/시",null,0,"3","*","*","*","*",null,null,"cron.goods.benefit.price.create","상품 즉시할인가 생성","/goods/benefit/price/create"]
[3,"네이버 전체EP 생성","cron.naver.ep.all.goods","goods","ep.naver.all.goods","create","cron.goods.ep.naver.all.goods.create","/goods/ep/naver/all/goods/create","상품","일","1회/일",null,0,"23",4,"*","*","*",null,null,"cron.goods.ep.naver.all.goods.create","네이버EP 전체상품 생성","/goods/ep/naver/all/goods/create"]
[4,"네이버 요약EP  생성","cron.naver.ep.summary.goods","goods","ep.naver.summary.goods","create",{"$f":"\"cron.\"&D6&\".\"&E6&\".\"&F6","v":"cron.goods.ep.naver.summary.goods.create"},{"$f":"\"/\"&D6&\"/\"&SUBSTITUTE(E6,\".\",\"/\")&\"/\"&F6","v":"/goods/ep/naver/summary/goods/create"},"상품","시간","1회/시",null,0,"23","*","*","*","*",null,null,"cron.goods.ep.naver.all.goods.create","네이버EP 전체상품 생성","/goods/ep/naver/all/goods/create"]
[5,"네이버 판매지수EP 생성",null,"goods","ep.naver.sell","create","cron.goods.ep.naver.sell.create","/goods/ep/naver/sell/create","상품","일","1회/일",null,0,"28","4","*","*","*",null,null,"cron.goods.ep.naver.all.goods.create","네이버EP 전체상품 생성","/goods/ep/naver/all/goods/create"]
[6,"다음 전체EP 생성",null,"goods","ep.daum.all.goods","create","cron.goods.ep.daum.all.goods.create","/goods/ep/daum/all/goods/create","상품","일","1회/일",null,0,"33",4,"*","*","*",null,null,"cron.goods.ep.naver.all.goods.create","네이버EP 전체상품 생성","/goods/ep/naver/all/goods/create"]
[7,"다음 요약EP 생성",null,"goods","ep.daum.summary.goods","create","cron.goods.ep.daum.summary.goods.create","/goods/ep/daum/summary/goods/create","상품","시간","1회/일",null,0,"33","*","*","*","*",null,null,"cron.goods.ep.naver.all.goods.create","네이버EP 전체상품 생성","/goods/ep/naver/all/goods/create"]
[8,"다음 상품평EP 생성",null,"goods","ep.daum.review","create","cron.goods.ep.daum.review.create","/goods/ep/daum/review/create","상품","일","1회/일",null,0,"38","4","*","*","*",null,null,"cron.goods.ep.naver.all.goods.create","네이버EP 전체상품 생성","/goods/ep/naver/all/goods/create"]
[9,"상품 예약타이틀명(세일링문구) 적용","cron.goods.titlename.reserve","goods","reserve.titlename","apply","cron.goods.reserve.titlename.apply",{"$f":"\"/\"&D11&\"/\"&SUBSTITUTE(E11,\".\",\"/\")&\"/\"&F11","v":"/goods/reserve/titlename/apply"},"상품","시간","1회/시",null,"30","2","*","*","*","*",null,null,"cron.goods.reserve.titlename.apply","상품 예약타이틀명(세일링문구) 적용","/goods/reserve/titlename/apply"]
[10,"상품 예약가격 적용","cron.goods.price.reserve","goods","reserve.price","apply","cron.goods.reserve.price.apply","/goods/reserve/price/apply","상품","시간","1회/시",null,0,"2","*","*","*","*",null,null,"cron.goods.reserve.price.apply","상품 예약가격 적용","/goods/reserve/price/apply"]
[11,"상품 연관상품 스코어링","cron.goods.relate.score","goods","relgoods","scoring","cron.goods.relgoods.scoring","/goods/relgoods/scoring","상품","시간","1회/시",null,0,5,"*","*","*","*",null,null,"cron.goods.relgoods.scoring","상품 연관상품 스코어링","/goods/relgoods/scoring"]
[12,"상품 검색어 생성","cron.goods.search.keyword","goods","keyword","create","cron.goods.keyword.create","/goods/keyword/create","상품","일","1회/일","25초",0,1,"0","*","*","*",null,null,"cron.goods.keyword.create","상품 검색어 생성","/goods/keyword/create"]
[13,"상품 요약정보 생성","cron.goods.summary","goods","summary","create","cron.goods.summary.create","/goods/summary/create","상품","일","1회/일",null,"30",1,"0","*","*","*","주간판매수량 등",null,"cron.goods.summary.create","상품 요약정보 생성","/goods/summary/create"]
[14,"소셜상품의 가격 적용","cron.social.socialGoodsJob","goods","social.price","apply","cron.goods.social.price.apply","/goods/social/price/apply","상품","시간","1회/시",null,0,"19","*","*","*","*",null,null,"cron.goods.social.price.apply","소셜상품의 가격 적용","/goods/social/price/apply"]
[15,"WMS 입고상품 수신","cron.goods.wms.incomelot","goods","wms.incomelot","receive","cron.goods.wms.incomelot.receive","/goods/wms/incomelot/receive","상품","일","1회/일",null,0,"30","0","*","*","*","전일자 기준 , p_dailyWarehousingInfo_inTB_IF_IncomeLot(02:30) 실행후 ",null,"cron.goods.wms.incomelot.receive","WMS 입고상품 수신","/goods/wms/incomelot/receive"]
[16,"WMS 상품재고 수신","cron.goods.wms.goods.stock","goods","wms.stock","receive","cron.goods.wms.stock.receive","/goods/wms/stock/receive","상품","일","1회/일",null,0,"40","0","*","*","*","cron.goods.shop.stock.receive 실행 후 재고배치 실행\nwms재고(65,782건)- 192초",null,"cron.goods.wms.stock.receive","WMS 상품재고 수신","/goods/wms/stock/receive"]
[17,"ERP 매장재고 수신","cron.delivery.tsbShopGoodsStockJob","goods","shop.stock","receive",{"$f":"\"cron.\"&D19&\".\"&E19&\".\"&F19","v":"cron.goods.shop.stock.receive"},"/goods/shop/stock/receive","상품","시간","1회/시",null,0,"7","*","*","*","*",null,null,"cron.goods.shop.stock.receive","ERP 매장재고 수신","/goods/shop/stock/receive"]
[18,"WMS 실측사이즈 수신","cron.goods.wms.measurement","goods","wms.measurement","receive","cron.goods.wms.measurement.receive","/goods/wms/measurement/receive","상품","일","1회/일",null,0,"50","0","*","*","*",null,null,"cron.goods.wms.measurement.receive","WMS 실측사이즈 수신","/goods/wms/measurement/receive"]
[19,"WMS 업체/브랜드 송신","cron.goods.wms.brandprovider","goods","wms.brandprovider","send","cron.goods.wms.brandprovider.send","/goods/wms/brandprovider/send","상품","일","1회/일",null,0,"0","1","*","*","*",null,null,"cron.goods.wms.brandprovider.send","WMS 업체/브랜드 송신","/goods/wms/brandprovider/send"]
[20,"WMS 상품정보 송신","cron.goods.wms.goods","goods","wms.goods","send","cron.goods.wms.goods.send","/goods/wms/goods/send","상품","일","1회/일",null,0,"10","1","*","*","*",null,null,"cron.goods.wms.goods.send","WMS 상품정보 송신","/goods/wms/goods/send"]
[21,"검색 - 전체색인","cron.goods.search.all.create","goods","search.all","create","cron.goods.search.all.create","/goods/search/all/create","상품","일","1회/일","120만건 718초","0","0","2","*","*","*","얘저10분실행\n\n검색엔진 스케쥴\n- GOODS 상품 전체색인은 매일 3시에 수행\n- GOODS 상품 추가색인은  매시간 25분에 수행 \n- 기획전은 전체색인만 수행되며 매일 6시에 수행"]
[22,"검색 - 부분색인","cron.goods.search.section.create","goods","search.section","create","cron.goods.search.section.create","/goods/search/section/create","상품","시간","1회/시",null,"0","10","0-1, 3-23","*","*","*","cron.goods.benefit.create\ncron.goods.benefit.price.create\ncron.goods.reserve.titlename.apply\ncron.goods.social.price.apply\ncron.goods.wms.stock.receive\n실행후"]
[23,"휴면예정회원 생성","cron.customer.dormant.schedule","customer","dormant","create","cron.customer.dormant.create","/customer/dormant/create","회원","일","1회/일",null,"0","0","2","*","*","*","수행시간 측정전 알림톡, 메일 발송 되는 부분이 있어 부분만 할지? , 테이블을 변경 해서 넣어 봐야 할지 고민이 필요합니다. ",null,"cron.customer.dormant.create","휴면예정회원 생성","/customer/dormant/create"]
[24,"휴면회원 처리","cron.customer.dormant.transform","customer","dormant","transform","cron.customer.dormant.transform","/customer/dormant/transform","회원","일","1회/일",null,"0","10","2","*","*","*",null,null,"cron.customer.dormant.transform","휴면회원 처리","/customer/dormant/transform"]
[25,"탈퇴회원 처리","cron.customer.secede.process","customer","secede","transform","cron.customer.secede.transform","/customer/secede/transform","회원","일","1회/일",null,"0","20","2","*","*","*","수행시간 측정전 알림톡, 메일 발송 되는 부분이 있어 부분만 할지? , 테이블을 변경 해서 넣어 봐야 할지 고민이 필요합니다. ",null,"cron.customer.secede.transform","탈퇴회원 처리","/customer/secede/transform"]
[26,"개인정보이용내역안내","cron.customer.privacy.policy.notice","customer","privacy.info","notify","cron.customer.privacy.info.notify","/customer/privacy/info/notify","회원","일","1회/일",null,"0","30","2","*","*","*","가입일로부터 1년 시점에 발송 수행시간 측정전 알림톡, 메일 발송 되는 부분이 있어 부분만 할지? , 테이블을 변경 해서 넣어 봐야 할지 고민이 필요합니다. ",null,"cron.customer.privacy.info.notify","개인정보이용내역안내","/customer/privacy/info/notify"]
[27,"마케팅정보수신동의안내","cron.customer.marketing.agreement.notice","customer","marketing.info","notify","cron.customer.marketing.info.notify","/customer/marketing/info/notify","회원","일","1회/일",null,"0","40","2","*","*","*","마케팅정보수신동의자에 한해 발송\n가입일로부터 2년 시점에 발송",null,"cron.customer.marketing.info.notify","마케팅정보수신동의안내","/customer/marketing/info/notify"]
[28,"회원등급변경","cron.customer.grade.change","customer","grade","change","cron.customer.grade.change","/customer/grade/change","회원","월","1회/월",null,"0","50","2","*","*","*"," 수행시간 측정전 알림톡, 메일 발송 되는 부분이 있어 부분만 할지? , 테이블을 변경 해서 넣어 봐야 할지 고민이 필요합니다. ",null,"cron.customer.grade.change","회원등급변경","/customer/grade/change"]
[29,"넷퍼시메일솔루션 회원정보 연동","cron.customer.netpathy.sync","customer","netpathy.mail","sync","cron.customer.netpathy.mail.sync","/customer/netpathy/mail/sync","회원","월","1회/월",null,"0","0","3","*","*","*","넷퍼시메일솔루션용 회원정보 생성 -> 넷퍼시에서 해당 정보 수신 후 처리",null,"cron.customer.netpathy.mail.sync","넷퍼시메일솔루션 회원정보 연동","/customer/netpathy/mail/sync"]
[30,"자동구매확정","cron.marketing.auto.buy.confirm","customer","auto.buy","confirm","cron.customer.auto.buy.confirm","/customer/auto/buy/confirm","마케팅","일","1회/일",null,0,"5","3","*","*","*","구매 예정포인트 지급",null,"cron.customer.auto.buy.confirm","자동구매확정","/customer/auto/buy/confirm"]
[31,"생일쿠폰 다운로드 안내","cron.marketing.birthday.coupon.notice","customer","birth.coupon","notify","cron.customer.birth.coupon.notify","/customer/birth/coupon/notify","마케팅","월","1회/월",null,"0","10","3","1","*","*","당월 생일인 회원을 대상으로 매월 1일에 발송",null,"cron.customer.birth.coupon.notify","생일쿠폰 다운로드 안내","/customer/birth/coupon/notify"]
[32,"복귀할인쿠폰발급안내","cron.marketing.comback.coupon.notice","customer","comback.coupon","notify","cron.customer.comback.coupon.notify","/customer/comback/coupon/notify","마케팅","월","1회/월",null,"0","20","5","5","*","*","매월 5일에 발송",null,"cron.customer.comback.coupon.notify","복귀할인쿠폰발급안내","/customer/comback/coupon/notify"]
[33,"포인트 소멸 처리","cron.marketing.expire.point","customer","point","expire","cron.customer.point.expire","/customer/point/expire","마케팅","일","1회/일","1건 0.03초",0,"40","3","*","*","*",null,null,"cron.customer.point.expire","포인트 소멸 처리","/customer/point/expire"]
[34,"포인트 소멸예정 안내","cron.marketing.expect.point","customer","point.expect","notify",{"$f":"\"cron.\"&D36&\".\"&E36&\".\"&F36","v":"cron.customer.point.expect.notify"},{"$f":"\"/\"&D36&\"/\"&SUBSTITUTE(E36,\".\",\"/\")&\"/\"&F36","v":"/customer/point/expect/notify"},"마케팅","일","1회/일","0.052초",0,"50","3","*","*","*","시간…?",null,"cron.customer.point.expect.notify","포인트 소멸 예정 안내","/customer/point/expect/notify"]
[35,"상품권 소멸 처리","cron.marketing.expire.giftcard","customer","giftcard","expire",{"$f":"\"cron.\"&D37&\".\"&E37&\".\"&F37","v":"cron.customer.giftcard.expire"},{"$f":"\"/\"&D37&\"/\"&SUBSTITUTE(E37,\".\",\"/\")&\"/\"&F37","v":"/customer/giftcard/expire"},"마케팅","일","1회/일","1796건 7.921초",0,"55","3","*","*","*",null,null,"cron.customer.giftcard.expire","상품권 소멸 처리","/customer/giftcard/expire"]
[36,"상품권 소멸예정 안내","cron.marketing.expect.giftcard","customer","giftcard.expect","notify",{"$f":"\"cron.\"&D38&\".\"&E38&\".\"&F38","v":"cron.customer.giftcard.expect.notify"},"/customer/giftcard/expect/notify","마케팅","일","1회/일",null,0,"0","4","*","*","*","시간…?",null,"cron.customer.giftcard.expect.notify","상품권 소멸 예정 안내","/customer/giftcard/expect/notify"]
[37,"쿠폰 소멸예정 안내","cron.marketing.expect.coupon","customer","coupon.expect","notify",{"$f":"\"cron.\"&D39&\".\"&E39&\".\"&F39","v":"cron.customer.coupon.expect.notify"},{"$f":"\"/\"&D39&\"/\"&SUBSTITUTE(E39,\".\",\"/\")&\"/\"&F39","v":"/customer/coupon/expect/notify"},"마케팅","일","1회/일","0.018초",0,"5","4","*","*","*","시간…?",null,"cron.customer.coupon.expect.notify","쿠폰 소멸 예정 안내","/customer/coupon/expect/notify"]
[38,"상품평등록안내 발송","cron.marketing.review.guide","customer","review.register","notify","cron.customer.review.register.notify","/customer/review/register/notify","마케팅","일","1회/일",null,"0","10","4","*","*","*",null,null,"cron.customer.review.register.notify","상품평등록안내 발송","/customer/review/register/notify"]
[39,"카테고리 갱신","cron.display.category.refresh","display","category","refresh","cron.display.category.refresh","/display/category/refresh","전시","시간","1회/시","0.083초",0,"30","*","*","*","*",null,null,"cron.display.category.refresh","카테고리 갱신","/display/category/refresh"]
[40,"카테고리별 재고 생성","cron.display.category.stock","display","category.stock","create","cron.display.category.stock.create","/display/category/stock/create","전시","시간","1회/시",null,"0","5/10","*","*","*","*",null,null,"cron.display.category.stock.create","카테고리별 재고 생성","/display/category/stock/create"]
[41,"카테고리별 검색필터 생성","cron.display.category.filter","display","category.filter","create","cron.display.category.filter.create","/display/category/filter/create","전시","시간","1회/시","22,221건 373초","0","45","*","*","*","*","사용안함",null,"cron.display.category.filter.create","카테고리별 검색필터 생성","/display/category/filter/create"]
[42,"최근 등록된 상품 100개 생성","cron.display.recently.reg.goods.create","display","recently.reg.goods","create",{"$f":"\"cron.\"&D44&\".\"&E44&\".\"&F44","v":"cron.display.recently.reg.goods.create"},{"$f":"\"/\"&D44&\"/\"&SUBSTITUTE(E44,\".\",\"/\")&\"/\"&F44","v":"/display/recently/reg/goods/create"},"전시","시간","1회/시",null,"0","45","*","*","*","*","사용안함",null,"cron.display.category.filter.create","카테고리별 검색필터 생성","/display/category/filter/create"]
[43,"만료기간 지난 장바구니 삭제","cron.marketing.cart.expiration","order","cart.deadline","expire","cron.order.cart.deadline.expire","/order/cart/deadline/expire","주문","일","1회/일","550건 0.038초","0","20","4","*","*","*",null,null,"cron.order.cart.deadline.expire","만료기간 지난 장바구니 삭제","/order/cart/deadline/expire"]
[44,"무통장(가상계좌) 입금대기 알림","job.shop.WbaDepositWatingNotiJob","order","deposit.waiting","notify","cron.order.deposit.waiting.notify","/order/deposit/waiting/notify","주문","일","1회/일","1건 0.031초","0","30","4","*","*","*",null,null,"cron.order.deposit.waiting.notify","무통장(가상계좌) 입금대기 알림","/order/deposit/waiting/notify"]
[45,"무통장결제 입금기한 만료건 주문 취소","cron.order.deposit.expiration","order","deposit.deadline","expire",{"$f":"\"cron.\"&D47&\".\"&E47&\".\"&F47","v":"cron.order.deposit.deadline.expire"},{"$f":"\"/\"&D47&\"/\"&SUBSTITUTE(E47,\".\",\"/\")&\"/\"&F47","v":"/order/deposit/deadline/expire"},"주문","시간","1회/시","46건 9.66초",0,"40","4","*","*","*",null,null,"cron.order.deposit.deadline.expire","무통장결제 입금기한 만료건 주문 취소","/order/deposit/deadline/expire"]
[46,"선물하기 배송지 등록기한 만료건 주문 취소","cron.order.gift.expiration","order","gift.deadline","expire","cron.order.gift.deadline.expire","/order/gift/deadline/expire","주문","시간","1회/시","2건 0.856초","0","10","5","*","*","*",null,null,"cron.order.gift.deadline.expire","선물하기 배송지 등록기한 만료건 주문 취소","/order/gift/deadline/expire"]
[47,"장바구니 미구매 확인(삭제 10일 전) 푸시","cron.order.cart.unpurchase.push","order","cart.unpurchase","push","cron.order.cart.unpurchase.push","/order/cart/unpurchase/push","주문","일","1회/일","1건 0.032초",null,"50","4",null,null,null,"시간….?"]
[48,"장바구니 혜택 추가 푸시","cron.order.cart.benefit.push","order","cart.benefit","push","cron.order.cart.benefit.push","/order/cart/benefit/push","주문","일","1회/일","8건 0.253초",null,"0","5",null,null,null,"시간….?"]
[49,"위시리스트 혜택 추가 푸시","cron.order.wish.benefit.push","order","wish.benefit","push","cron.order.wish.benefit.push","/order/wish/benefit/push","주문","일","1회/일","8건 0.243초",null,"10","5",null,null,null,"시간….?"]
[50,"네이버페이 주문형(마스터)","cron.naverPay.order.batch","naverPay","order","batch","cron.naverPay.order.batch",null,"주문","시간","1회/분","00초","0","0/20","*","1/1","*","*","20분 배치 (애져 방화벽 문제로 테스트 불가)"]
[51,"네이버페이 주문형(결제완료 수신)","cron.naverpay.recv.order","naverpay","recv","order",{"$f":"\"cron.\"&D53&\".\"&E53&\".\"&F53","v":"cron.naverpay.recv.order"},"/naverpay/recv/order/complete","주문","시간","1회/분","00초",{"$nulls":6},"cron.naverPay.order.batch 배치 실행시 동작",null,"cron.delivery.shot.deliveryzone.refresh","총알배송 권역정보 갱신","/delivery/shot/deliveryzone/refresh"]
[52,"네이버페이 주문형(취소완료 수신)","cron.naverpay.recv.cancel.complete","naverpay","recv.cancel","complete","cron.naverpay.recv.cancel.complete","/naverpay/recv/cancel/complete","주문","시간","1회/분","00초",{"$nulls":6},"cron.naverPay.order.batch 배치 실행시 동작"]
[53,"네이버페이 주문형(취소접수 수신)","cron.naverpay.recv.cancel.req","naverpay","recv.cancel","req","cron.naverpay.recv.cancel.req","/naverpay/recv/cancel/req","주문","시간","1회/분","00초",{"$nulls":6},"cron.naverPay.order.batch 배치 실행시 동작"]
[54,"네이버페이 주문형(구매확정 수신)","cron.naverpay.recv.order.decide","naverpay","recv.order","decide","cron.naverpay.recv.order.decide","/naverpay/recv/order/decide","주문","시간","1회/분","00초",{"$nulls":6},"cron.naverPay.order.batch 배치 실행시 동작"]
[55,"네이버페이 주문형(반품접수 수신)","cron.naverpay.recv.return.req","naverpay","recv.return","req","cron.naverpay.recv.return.req","/naverpay/recv/return/req","주문","시간","1회/분","00초",{"$nulls":6},"cron.naverPay.order.batch 배치 실행시 동작"]
[56,"네이버페이 주문형(교환접수 수신)","cron.naverpay.recv.exchange.req","naverpay","recv.excgabge","req","cron.naverpay.recv.exchange.req","/naverpay/recv/exchange/req","주문","시간","1회/분","00초",{"$nulls":6},"cron.naverPay.order.batch 배치 실행시 동작"]
[57,"네이버페이 주문형(회수송장번호 수신)","cron.naverpay.recv.wd.invoice.no","naverpay","recv.wd","invoice.no","cron.naverpay.recv.wd.invoice.no","/naverpay/recv/wd/invoice/no","주문","시간","1회/분","00초",{"$nulls":6},"cron.naverPay.order.batch 배치 실행시 동작"]
[58,"네이버페이 주문형(배송준비중 송신)","cron.naverpay.send.ready.delivery","naverpay","send.ready","delivery","cron.naverpay.send.ready.delivery","/naverpay/send/ready/delivery","주문","시간","1회/분","00초",{"$nulls":6},"cron.naverPay.order.batch 배치 실행시 동작"]
[59,"총알배송 권역정보 갱신","cron.delivery.tsbDailyDeliveryZoneJob","delivery","shot.deliveryzone","refresh","cron.delivery.shot.deliveryzone.refresh","/delivery/shot/deliveryzone/refresh","배송","일","1회/일",null,0,"10","2","*","*","*",null,null,"cron.delivery.loc.assign","출고처 지정 및 출고 지시","/delivery/loc/assign"]
[60,"출고처 지정 및 출고 지시","cron.delivery.tsbDeliveryOrderJob","delivery","loc","assign","cron.delivery.loc.assign","/delivery/loc/assign","배송","시간","1회/시",null,0,"0/10","7-16","*","*","MON-FRI",null,null,"cron.delivery.wms.outgoing.exception.receive","WMS 출고예외 수신","/delivery/wms/outgoing/exception/receive"]
[61,"WMS 출고예외 수신","cron.delivery.tsbDeliveryExcRcvJob","delivery","wms.outgoing.exception","receive","cron.delivery.wms.outgoing.exception.receive","/delivery/wms/outgoing/exception/receive","배송","시간","1회/시",null,0,"0/10","*","*","*","*",null,null,"cron.delivery.wms.outgoing.result.receive","WMS 출고결과 수신","/delivery/wms/outgoing/result/receive"]
[62,"WMS 출고결과 수신","cron.delivery.tsbDeliveryOrderRsltJob","delivery","wms.outgoing.result","receive","cron.delivery.wms.outgoing.result.receive","/delivery/wms/outgoing/result/receive","배송","시간","1회/시",null,0,"5/10","*","*","*","*",null,null,"cron.delivery.wms.invoice.receive","WMS 운송장번호 수신","/delivery/wms/invoice/receive"]
[63,"WMS 운송장번호 수신","cron.delivery.tsbInvoiceNoRcvJob","delivery","wms.invoice","receive","cron.delivery.wms.invoice.receive","/delivery/wms/invoice/receive","배송","시간","1회/시",null,0,"7/10","*","*","*","*",null,null,"cron.delivery.sweettracker.invoice.retrieve","스윗트래커 송장상태 조회","/delivery/sweettracker/invoice/retrieve"]
[64,"스윗트래커 송장상태 조회","cron.delivery.tsbSweetTrackerJob","delivery","sweettracker.invoice","retrieve","cron.delivery.sweettracker.invoice.retrieve","/delivery/sweettracker/invoice/retrieve","배송","시간","1회/시",null,0,"9/10","*","*","*","*",null,null,"cron.delivery.auto.soldout.cancel","자동품절취소","/delivery/auto/soldout/cancel"]
[65,"자동품절취소","cron.delivery.tsbSoldoutCancelJob","delivery","auto.soldout","cancel","cron.delivery.auto.soldout.cancel","/delivery/auto/soldout/cancel","배송","시간","1회/시",null,0,"8/10","*","*","*","*",null,null,"cron.withdraw.wms.request","WMS 회수요청","/withdraw/wms/request"]
[66,"WMS 회수요청","cron.delivery.tsbWithdrawRequestJob","withdraw","wms","request",{"$f":"\"cron.\"&D68&\".\"&E68&\".\"&F68","v":"cron.withdraw.wms.request"},{"$f":"\"/\"&D68&\"/\"&SUBSTITUTE(E68,\".\",\"/\")&\"/\"&F68","v":"/withdraw/wms/request"},"배송","시간","1회/시",null,0,"0/10","7-16","*","*","MON-FRI",null,null,"cron.withdraw.wms.ingoing.exception.receive","WMS 회수입고예외 수신","/withdraw/wms/ingoing/exception/receive"]
[67,"WMS 회수입고예외 수신","cron.delivery.tsbWithdrawExcRcvJob","withdraw","wms.ingoing.exception","receive","cron.withdraw.wms.ingoing.exception.receive","/withdraw/wms/ingoing/exception/receive","배송","시간","1회/시",null,0,"2/10","*","*","*","*",null,null,"cron.withdraw.wms.ingoing.exception.result.receive","WMS 회수입고예외 결과 수신","/withdraw/wms/ingoing/exception/result/receive"]
[68,"WMS 회수입고예외 결과 수신","cron.delivery.tsbWithdrawExcRsltJob","withdraw","wms.ingoing.exception.result","receive","cron.withdraw.wms.ingoing.exception.result.receive","/withdraw/wms/ingoing/exception/result/receive","배송","시간","1회/시",null,0,"4/10","*","*","*","*",null,null,"cron.withdraw.wms.ingoing.result.receive","WMS 회수입고결과 수신","/withdraw/wms/ingoing/result/receive"]
[69,"WMS 회수입고결과 수신","cron.delivery.tsbWithdrawRsltJob","withdraw","wms.ingoing.result","receive","cron.withdraw.wms.ingoing.result.receive","/withdraw/wms/ingoing/result/receive","배송","시간","1회/시",null,0,"6/10","*","*","*","*",null,null,"cron.withdraw.cj.invoice.receive","CJ 회수송장번호 수신","/withdraw/cj/invoice/receive"]
[70,"CJ 회수송장번호 수신","cron.delivery.tsbWithdrawInvoiceJob","withdraw","cj.invoice","receive","cron.withdraw.cj.invoice.receive","/withdraw/cj/invoice/receive","배송","시간","1회/시",null,0,"30","*","*","*","*",null,null,"cron.withdraw.cj.status.receive","CJ 회수상태 수신","/withdraw/cj/status/receive"]
[71,"CJ 회수상태 수신","cron.delivery.tsbWithdrawInvoiceStatJob","withdraw","cj.status","receive","cron.withdraw.cj.status.receive","/withdraw/cj/status/receive","배송","시간","1회/시",null,0,"37","*","*","*","*",null,null,"cron.statistics.aflink.inflow.create","제휴채널 유입통계 생성","/statistics/aflink/inflow/create"]
[72,"제휴채널 유입통계 생성","cron.statistics.inflow","statistics","aflink.inflow","create","cron.statistics.aflink.inflow.create","/statistics/aflink/inflow/create","통계","시간","1회/시",null,0,"17","*","*","*","*",null,null,"cron.statistics.aflink.inflow.yesterday.create","제휴채널 유입통계 전일자 생성","/statistics/aflink/inflow/yesterday/create"]
[73,"제휴채널 유입통계 전일자 생성 ","cron.statistics.inflow.yesterday","statistics","aflink.inflow.yesterday","create",{"$f":"\"cron.\"&D75&\".\"&E75&\".\"&F75","v":"cron.statistics.aflink.inflow.yesterday.create"},{"$f":"\"/\"&D75&\"/\"&SUBSTITUTE(E75,\".\",\"/\")&\"/\"&F75","v":"/statistics/aflink/inflow/yesterday/create"},"통계","일","1회/일",null,0,"17",1,"*","*","*"]
[74,"샵링커 재고변경 10시","cron.shoplinker.stock.send10","shoplinker","stock","send10","cron.shoplinker.stock.send10","/shoplinker/stock/send10","재고","일","1회/일","건수 7,758건 기준 1,025 초",0,0,10,"*","*","*","10시"]
[75,"샵링커 재고변경 15시","cron.shoplinker.stock.send15","shoplinker","stock","send15","cron.shoplinker.stock.send15","/shoplinker/stock/send15","재고","일","1회/일","건수 7,758건 기준 1,025 초",0,0,15,"*","*","*","15시"]
[76,"샵링커 주문수집","cron.shoplinker.order.receive","shoplinker","order","receive","cron.shoplinker.order.receive","/shoplinker/order/receive","주문","시간","1회/시","건수 6,186건 기준 2,245 초",0,5,"5-15","*","*","MON-FRI","평일 5시~15시까지"]
[77,"샵링커 송장전송","cron.shoplinker.invoice.send","shoplinker","invoice","send","cron.shoplinker.invoice.send","/shoplinker/invoice/send","배송","시간","1회/시","건수 100건 기준 12 초",0,0,"*","*","*","*","1시간마다 실행"]